fUST/lending_fUST_20240828
["ID","MTS","AMOUNT","RATE_DAILY","PERIOD"]
[336384861,1724800242505,-500.0,0.00011506,2]
[336384863,1724800242515,-918.92,0.00011506,2]
[336384865,1724800242525,-500.0,0.00011521,2]
[336384867,1724800242534,-183.69809633,0.00011521,2]
[336384869,1724800242544,-7019.02837854,0.00011544,2]
[336384872,1724800242554,-345.77371257,0.00011544,2]
[336384874,1724800242564,-947.018531,0.00011544,2]
[336384876,1724800242573,-1012.38179184,0.00011544,2]
[336384878,1724800242583,-2714.82142664,0.00011544,2]
[336384880,1724800242592,-1509.8743557,0.0001168,2]
[336384882,1724800242602,-500.0,0.00011779,2]
[336384884,1724800242611,-500.0,0.00011779,2]
[336384886,1724800242621,-248.96167621,0.0001178,5]
[336384889,1724800242630,-500.0,0.0001178,2]
[336384891,1724800242640,-500.0,0.0001178,2]
[336384894,1724800242649,-500.0,0.0001178,2]
[336384896,1724800242659,-500.0,0.0001178,2]
[336384898,1724800242668,-500.0,0.0001178,2]
[336384900,1724800242678,-500.0,0.0001178,2]
[336384903,1724800242687,-500.0,0.0001178,2]
[336384905,1724800242697,-500.0,0.0001178,2]
[336384907,1724800242706,-500.0,0.0001178,2]
[336384909,1724800242715,-500.0,0.0001178,2]
[336384911,1724800242724,-500.0,0.0001178,2]
[336384913,1724800242733,-721.27,0.0001178,2]
[336384916,1724800242743,-500.0,0.0001178,2]
[336384919,1724800242752,-500.0,0.0001178,2]
[336384922,1724800242761,-500.0,0.0001178,2]
[336384925,1724800242771,-500.0,0.0001178,2]
[336384929,1724800242780,-1389.12,0.0001178,2]
[336384933,1724800242789,-500.0,0.0001178,2]
[336384937,1724800242804,-922.35,0.0001178,2]
[336384940,1724800242814,-500.0,0.0001178,2]
[336384943,1724800242823,-500.0,0.0001178,2]
[336384946,1724800242832,-500.0,0.0001178,2]
[336384949,1724800242842,-500.0,0.0001178,2]
[336384952,1724800242852,-159.02,0.0001178,2]
[336384954,1724800242861,-637.93,0.0001178,2]
[336384957,1724800242872,-283.78,0.0001178,2]
[336384960,1724800242881,-392.58,0.0001178,2]
[336384963,1724800242890,-913.34,0.0001178,2]
[336384966,1724800242899,-500.0,0.0001178,2]
[336384969,1724800242909,-2877.97,0.0001178,2]
[336384971,1724800242919,-561.84,0.0001178,2]
[336384973,1724800242928,-3790.44,0.0001178,2]
[336384975,1724800242938,-775.11,0.0001178,2]
[336384992,1724800242947,-2815.02,0.0001178,2]
[336384994,1724800243095,-500.0,0.0001178,2]
[336384996,1724800243105,-687.65,0.0001178,2]
[336384998,1724800243114,-3115.63,0.0001178,2]
[336385000,1724800243123,-1215.38,0.0001178,2]
[336385002,1724800243133,-880.85,0.0001178,2]
[336385004,1724800243142,-4988.1,0.0001178,2]
[336385006,1724800243151,-1918.59,0.0001178,2]
[336385009,1724800243161,-500.0,0.0001178,2]
[336385011,1724800243171,-3910.95,0.0001178,2]
[336385013,1724800243181,-780.67,0.0001178,2]
[336385015,1724800243190,-500.0,0.0001178,2]
[336385017,1724800243200,-500.0,0.0001178,2]
[336385019,1724800243210,-500.0,0.0001178,2]
[336385021,1724800243220,-14138.72,0.0001178,2]
[336385023,1724800243230,-500.0,0.0001178,2]
[336385025,1724800243241,-831.25,0.0001178,2]
[336385027,1724800243250,-2224.33,0.0001178,2]
[336385029,1724800243261,-1675.48,0.0001178,2]
[336385031,1724800243270,-480.94,0.0001178,2]
[336385033,1724800243281,-500.0,0.0001178,2]
[336385035,1724800243298,-3043.61,0.0001178,2]
[336385037,1724800243307,-2970.76,0.0001178,2]
[336385039,1724800243316,-4568.64,0.0001178,2]
[336385041,1724800243325,-500.0,0.0001178,2]
[336385043,1724800243335,-7789.76,0.0001178,2]
[336385045,1724800243345,-500.0,0.0001178,2]
[336385047,1724800243354,-918.92,0.0001178,2]
[336385049,1724800243365,-9413.45214869,0.00011817,2]
[336385052,1724800243376,-1921.3989197,0.00011842,3]
[336385054,1724800243387,-500.0,0.00011873,2]
[336385056,1724800243397,-500.0,0.00011873,2]
[336385058,1724800243408,-500.0,0.00011899,2]
[336385060,1724800243419,-500.0,0.00011899,2]
[336385062,1724800243429,-500.0,0.00011899,2]
[336385064,1724800243438,-500.0,0.00011899,2]
[336385066,1724800243448,-500.0,0.00011899,2]
[336385068,1724800243458,-175.66,0.00011899,2]
[336385070,1724800243468,-126078.07992396,0.000119,2]
[336385112,1724800243860,-3999.97348199,0.000119,2]
[336385115,1724800243872,-517931.95527805,0.000119,2]
[336385117,1724800243882,-2094.717766,0.00011965,2]
[336385119,1724800243892,-207.3264095,0.00011987,2]
[336385121,1724800243902,-174.81332427,0.00011999,2]
[336385123,1724800243911,-261.82523773,0.00012047,2]
[336385125,1724800243922,-500.0,0.00012054,2]
[336385127,1724800243931,-500.0,0.00012054,2]
[336385129,1724800243941,-500.0,0.00012054,2]
[336385131,1724800243951,-500.0,0.00012054,2]
[336385133,1724800243960,-500.0,0.00012054,2]
[336385135,1724800243969,-500.0,0.00012054,2]
[336385137,1724800243980,-463.03460509,0.00012054,2]
[336385140,1724800243990,-500.0,0.00012054,2]
[336385141,1724800243999,-500.0,0.00012054,2]
[336385144,1724800244008,-514.26,0.00012054,2]
[336385146,1724800244017,-500.0,0.00012054,2]
[336385148,1724800244027,-721.27,0.00012054,2]
[336385150,1724800244037,-500.0,0.00012054,2]
[336385152,1724800244049,-500.0,0.00012054,2]
[336385154,1724800244059,-500.0,0.00012054,2]
[336385156,1724800244068,-1389.12,0.00012054,2]
[336385158,1724800244079,-351.51,0.00012054,2]
[336385160,1724800244089,-922.35,0.00012054,2]
[336385162,1724800244099,-500.0,0.00012054,2]
[336385164,1724800244108,-575.13,0.00012054,2]
[336385166,1724800244118,-500.0,0.00012054,2]
[336385168,1724800244128,-500.0,0.00012054,2]
[336385170,1724800244137,-913.34,0.00012054,2]
[336385172,1724800244146,-500.0,0.00012054,2]
[336385174,1724800244157,-561.84,0.00012054,2]
[336385176,1724800244166,-3790.44,0.00012054,2]
[336385178,1724800244175,-775.11,0.00012054,2]
[336385180,1724800244185,-2815.02,0.00012054,2]
[336385182,1724800244194,-500.0,0.00012054,2]
[336385183,1724800244204,-687.65,0.00012054,2]
[336385184,1724800244213,-3115.63,0.00012054,2]
[336385185,1724800244222,-1215.38,0.00012054,2]
[336385186,1724800244232,-880.85,0.00012054,2]
[336385187,1724800244242,-4988.1,0.00012054,2]
[336385188,1724800244253,-1918.59,0.00012054,2]
[336385189,1724800244262,-3910.95,0.00012054,2]
[336385190,1724800244271,-780.67,0.00012054,2]
[336385191,1724800244281,-500.0,0.00012054,2]
[336385192,1724800244292,-500.0,0.00012054,2]
[336385193,1724800244302,-500.0,0.00012054,2]
[336385194,1724800244312,-14138.72,0.00012054,2]
[336385195,1724800244322,-500.0,0.00012054,2]
[336385197,1724800244332,-831.25,0.00012054,2]
[336385198,1724800244342,-2224.33,0.00012054,2]
[336385200,1724800244352,-1675.48,0.00012054,2]
[336385202,1724800244362,-580.3,0.00012054,2]
[336385205,1724800244373,-3043.61,0.00012054,2]
[336385207,1724800244383,-2970.76,0.00012054,2]
[336385208,1724800244392,-4568.64,0.00012054,2]
[336385211,1724800244402,-500.0,0.00012054,2]
[336385212,1724800244412,-7789.76,0.00012054,2]
[336385215,1724800244427,-500.0,0.00012054,2]
[336385217,1724800244436,-918.92,0.00012054,2]
[336385219,1724800244447,-180.86285832,0.0001212,2]
[336385221,1724800244457,-154.95091821,0.0001212,2]
[336385223,1724800244467,-253.11762544,0.0001212,2]
[336385225,1724800244477,-406.7223026,0.0001212,2]
[336385227,1724800244486,-9413.45214869,0.0001216,2]
[336385229,1724800244495,-1767.84535613,0.00012163,2]
[336385231,1724800244507,-153.0,0.00012221,2]
[336385233,1724800244517,-153.0,0.00012221,2]
[336385235,1724800244527,-500.0,0.00012328,2]
[336385237,1724800244537,-222.75,0.00012328,2]
[336385239,1724800244549,-500.0,0.00012328,2]
[336385241,1724800244560,-500.0,0.00012328,2]
[336385243,1724800244569,-620.97,0.00012328,2]
[336385245,1724800244579,-500.0,0.00012328,2]
[336385247,1724800244589,-562.68,0.00012328,2]
[336385249,1724800244598,-500.0,0.00012328,2]
[336385251,1724800244608,-500.0,0.00012328,2]
[336385253,1724800244617,-721.27,0.00012328,2]
[336385255,1724800244627,-500.0,0.00012328,2]
[336385257,1724800244637,-500.0,0.00012328,2]
[336385259,1724800244646,-500.0,0.00012328,2]
[336385261,1724800244656,-1389.12,0.00012328,2]
[336385263,1724800244666,-922.35,0.00012328,2]
[336385265,1724800244675,-500.0,0.00012328,2]
[336385267,1724800244685,-500.0,0.00012328,2]
[336385269,1724800244694,-500.0,0.00012328,2]
[336385271,1724800244703,-913.34,0.00012328,2]
[336385273,1724800244713,-500.0,0.00012328,2]
[336385275,1724800244723,-561.84,0.00012328,2]
[336385277,1724800244732,-3790.44,0.00012328,2]
[336385279,1724800244742,-775.11,0.00012328,2]
[336385281,1724800244751,-2815.02,0.00012328,2]
[336385283,1724800244760,-500.0,0.00012328,2]
[336385285,1724800244769,-687.65,0.00012328,2]
[336385287,1724800244778,-3115.63,0.00012328,2]
[336385289,1724800244788,-1215.38,0.00012328,2]
[336385291,1724800244798,-880.85,0.00012328,2]
[336385293,1724800244808,-4988.1,0.00012328,2]
[336385295,1724800244817,-1918.59,0.00012328,2]
[336385297,1724800244826,-3910.95,0.00012328,2]
[336385299,1724800244835,-780.67,0.00012328,2]
[336385301,1724800244844,-500.0,0.00012328,2]
[336385303,1724800244854,-500.0,0.00012328,2]
[336385305,1724800244863,-500.0,0.00012328,2]
[336385307,1724800244873,-14138.72,0.00012328,2]
[336385309,1724800244882,-500.0,0.00012328,2]
[336385311,1724800244892,-831.25,0.00012328,2]
[336385313,1724800244901,-2224.33,0.00012328,2]
[336385315,1724800244911,-1675.48,0.00012328,2]
[336385317,1724800244921,-3043.61,0.00012328,2]
[336385320,1724800244931,-2970.76,0.00012328,2]
[336385321,1724800244941,-4568.64,0.00012328,2]
[336385323,1724800244951,-500.0,0.00012328,2]
[336385325,1724800244960,-7789.76,0.00012328,2]
[336385327,1724800244970,-500.0,0.00012328,2]
[336385330,1724800244980,-918.92,0.00012328,2]
[336385332,1724800244990,-8851.31811001,0.00012356,2]
[336385334,1724800245000,-296.13258418,0.00012356,2]
[336385336,1724800245010,-1000.0,0.00012421,2]
[336385338,1724800245019,-1000.0,0.00012421,2]
[336385340,1724800245029,-9413.45214869,0.00012502,2]
[336385342,1724800245039,-504.15,0.00012602,2]
[336385343,1724800245051,-500.0,0.00012602,2]
[336385345,1724800245060,-500.0,0.00012602,2]
[336385347,1724800245069,-500.0,0.00012602,2]
[336385349,1724800245079,-500.0,0.00012602,2]
[336385351,1724800245088,-500.0,0.00012602,2]
[336385353,1724800245097,-721.27,0.00012602,2]
[336385355,1724800245107,-500.0,0.00012602,2]
[336385357,1724800245117,-500.0,0.00012602,2]
[336385359,1724800245127,-485.05135613,0.00012602,2]
[336385361,1724800245136,-1389.12,0.00012602,2]
[336385363,1724800245146,-922.35,0.00012602,2]
[336385365,1724800245156,-500.0,0.00012602,2]
[336385367,1724800245165,-572.68,0.00012602,2]
[336385369,1724800245175,-500.0,0.00012602,2]
[336385371,1724800245184,-913.34,0.00012602,2]
[336385373,1724800245194,-500.0,0.00012602,2]
[336385375,1724800245204,-561.84,0.00012602,2]
[336385377,1724800245214,-3790.44,0.00012602,2]
[336385380,1724800245224,-775.11,0.00012602,2]
[336385382,1724800245234,-2815.02,0.00012602,2]
[336385384,1724800245243,-338.5,0.00012602,2]
[336385386,1724800245253,-687.65,0.00012602,2]
[336385388,1724800245262,-3115.63,0.00012602,2]
[336385390,1724800245272,-1215.38,0.00012602,2]
[336385392,1724800245281,-880.85,0.00012602,2]
[336385394,1724800245293,-4988.1,0.00012602,2]
[336385396,1724800245303,-1918.59,0.00012602,2]
[336385397,1724800245312,-3910.95,0.00012602,2]
[336385399,1724800245321,-780.67,0.00012602,2]
[336385401,1724800245331,-500.0,0.00012602,2]
[336385403,1724800245340,-500.0,0.00012602,2]
[336385405,1724800245350,-500.0,0.00012602,2]
[336385407,1724800245360,-13599.13838715,0.00012602,2]
[336385410,1724800245378,-539.58161285,0.00012602,2]
[336385412,1724800245387,-500.0,0.00012602,2]
[336385414,1724800245397,-831.25,0.00012602,2]
[336385416,1724800245406,-248.79507235,0.00012602,2]
[336385418,1724800245422,-1975.53492765,0.00012602,2]
[336385420,1724800245432,-1675.48,0.00012602,2]
[336385422,1724800245441,-3043.61,0.00012602,2]
[336385424,1724800245451,-2970.76,0.00012602,2]
[336385426,1724800245461,-4261.21507235,0.00012602,2]
[336385429,1724800245473,-307.42492765,0.00012602,2]
[336385431,1724800245483,-500.0,0.00012602,2]
[336385433,1724800245492,-7789.76,0.00012602,2]
[336385435,1724800245502,-500.0,0.00012602,2]
[336385437,1724800245513,-918.92,0.00012602,2]
[336385439,1724800245523,-308.87016453,0.00012689,2]
[336385441,1724800245533,-218.426,0.00012699,2]
[336385444,1724800245544,-150.0,0.00012699,2]
[336385447,1724800245553,-522.0,0.00012699,2]
[336385449,1724800245562,-426.92689338,0.00012876,2]
[336385451,1724800245571,-500.0,0.00012876,2]
[336385453,1724800245580,-500.0,0.00012876,2]
[336385455,1724800245590,-500.0,0.00012876,2]
[336385457,1724800245600,-500.0,0.00012876,2]
[336385459,1724800245610,-721.27,0.00012876,2]
[336385462,1724800245620,-500.0,0.00012876,2]
[336385464,1724800245630,-500.0,0.00012876,2]
[336385466,1724800245640,-1389.12,0.00012876,2]
[336385468,1724800245651,-922.35,0.00012876,2]
[336385470,1724800245664,-649.16,0.00012876,2]
[336385472,1724800245675,-500.0,0.00012876,2]
[336385474,1724800245684,-913.34,0.00012876,2]
[336385477,1724800245694,-500.0,0.00012876,2]
[336385480,1724800245704,-561.84,0.00012876,2]
[336385483,1724800245713,-3790.44,0.00012876,2]
[336385487,1724800245723,-775.11,0.00012876,2]
[336385492,1724800245734,-2815.02,0.00012876,2]
[336385496,1724800245743,-687.65,0.00012876,2]
[336385499,1724800245752,-3115.63,0.00012876,2]
[336385501,1724800245762,-333.62361045,0.00012876,2]
[336385595,1724800246534,-881.75638955,0.00012876,2]
[336385597,1724800246547,-880.85,0.00012876,2]
[336385599,1724800246557,-4988.1,0.00012876,2]
[336385601,1724800246566,-1918.59,0.00012876,2]
[336385603,1724800246575,-3910.95,0.00012876,2]
[336385605,1724800246585,-780.67,0.00012876,2]
[336385607,1724800246595,-500.0,0.00012876,2]
[336385609,1724800246604,-500.0,0.00012876,2]
[336385611,1724800246614,-9528.61239947,0.00012876,2]
[336385613,1724800246626,-3127.56724358,0.00012876,2]
[336385616,1724800246638,-800.0,0.00012876,2]
[336385625,1724800246724,-500.0,0.00010958,2]
[336385627,1724800246734,-682.54035695,0.00012876,2]
[336385629,1724800246743,-500.0,0.00012876,2]
[336385631,1724800246754,-831.25,0.00012876,2]
[336385634,1724800246765,-2224.33,0.00012876,2]
[336385636,1724800246776,-1205.10215965,0.00012876,2]
[336388472,1724800322200,-500.0,0.00010958,2]
[336388473,1724800322241,-422.33304252,0.00010958,2]
[336388474,1724800322342,-922.33304252,0.00010958,2]
[336388475,1724800322424,-922.33304252,0.00010958,2]
[336388476,1724800322475,-260.44087244,0.00010958,2]
[336388477,1724800322521,-661.89217008,0.00010958,2]
[336388478,1724800322574,-393.0347874,0.00010958,2]
[336388479,1724800323355,-821.75304252,0.00010958,2]
[336388480,1724800323390,-100.58,0.00010958,2]
[336388541,1724800621666,293.76128119,0.00027,60]
[336388542,1724800621689,400.0,0.00027,60]
[336388543,1724800621713,306.23871881,0.00027,60]
[336388571,1724800636781,93.76128119,0.00027,60]
[336388572,1724800636803,400.0,0.00027,60]
[336388573,1724800636824,400.0,0.00027,60]
[336388574,1724800636848,106.23871881,0.00027,60]
[336388579,1724800651809,293.76128119,0.00027,60]
[336388580,1724800651833,400.0,0.00027,60]
[336388581,1724800651859,306.23871881,0.00027,60]
[336388582,1724800666067,93.76128119,0.00027,60]
[336388583,1724800666088,400.0,0.00027,60]
[336388584,1724800666111,400.0,0.00027,60]
[336388585,1724800666132,106.23871881,0.00027,60]
[336388586,1724800681492,293.76128119,0.00027,60]
[336388587,1724800681519,400.0,0.00027,60]
[336388588,1724800681542,306.23871881,0.00027,60]
[336388626,1724800703037,93.76128119,0.00027,60]
[336388627,1724800703060,400.0,0.00027,60]
[336388628,1724800703081,400.0,0.00027,60]
[336388717,1724801234139,-285.57271643,8.761e-05,2]
[336388718,1724801235083,-236.23737371,8.761e-05,2]
[336388719,1724801235104,-415.11404143,8.769e-05,2]
[336388720,1724801235132,-1.47321909,8.769e-05,2]
[336388721,1724801235156,-300.0,9.137e-05,2]
[336388722,1724801235178,-300.0,9.137e-05,2]
[336388723,1724801235199,-9660.90592096,9.138e-05,2]
[336388725,1724801242082,-660.32230619,9.138e-05,2]
[336388726,1724801246077,-1288.53103621,9.138e-05,2]
[336388732,1724801356283,-209.81980082,8.861e-05,2]
[336388733,1724801356305,-300.0,9.137e-05,2]
[336388734,1724801356327,-1039.32391037,9.138e-05,2]
[336388735,1724801356348,-3333.5976225,9.138e-05,2]
[336388736,1724801356383,-13290.24073664,9.138e-05,2]
[336388737,1724801356408,-166.666666,9.159e-05,2]
[336388738,1724801356432,-166.666666,9.193e-05,2]
[336388739,1724801356458,-166.666666,9.227e-05,2]
[336388740,1724801356483,-251.4140405,9.256e-05,2]
[336388741,1724801356506,-166.666666,9.261e-05,2]
[336388742,1724801356530,-166.666666,9.295e-05,2]
[336388743,1724801356556,-166.666666,9.329e-05,2]
[336388744,1724801356582,-166.666666,9.363e-05,2]
[336388745,1724801356608,-166.666666,9.397e-05,2]
[336388746,1724801356632,-166.666666,9.431e-05,2]
[336388747,1724801356656,-166.666666,9.465e-05,2]
[336388748,1724801356680,-166.666666,9.5e-05,2]
[336388749,1724801356704,-166.666666,9.534e-05,2]
[336388750,1724801356727,-166.666666,9.568e-05,2]
[336388751,1724801356753,-166.666666,9.602e-05,2]
[336388752,1724801356776,-166.666666,9.636e-05,2]
[336388753,1724801356799,-1029.56293395,0.0001,2]
[336388754,1724801356835,-818.21912358,0.00010081,2]
[336388755,1724801364989,-192.06681084,0.0001026,2]
[336388757,1724801365022,-513.69602662,0.00010444,2]
[336388760,1724801365055,-316.66420506,0.00010544,2]
[336388762,1724801365101,-218.62434969,0.00010544,2]
[336388763,1724801365133,-803.80269283,0.00010544,2]
[336388765,1724801365171,-1022.42704252,0.00010544,2]
[336388766,1724801365226,-1022.42704252,0.00010544,2]
[336388767,1724801365266,-1022.42704252,0.00010544,2]
[336388770,1724801365306,-1022.42704252,0.00010544,2]
[336388772,1724801365351,-577.82944573,0.00010544,2]
[336388774,1724801365389,-1022.42704252,0.00010544,2]
[336388775,1724801365434,-1022.42704252,0.00010544,2]
[336388776,1724801365478,-1022.42704252,0.00010544,2]
[336388777,1724801365548,-312.69667381,0.00010544,2]
[336388779,1724801365587,-709.73036871,0.00010739,2]
[336388781,1724801365630,-1022.42704252,0.00010739,2]
[336388803,1724801389984,-535.28855475,0.0001026,2]
[336388804,1724801390016,-706.08886926,0.00010739,2]
[336388920,1724801438485,-2998.9186475,0.00010544,2]
[336388922,1724801438495,-181.37480287,0.00010739,2]
[336388924,1724801438505,-436.69807068,0.00010739,2]
[336388926,1724801438515,-158.41397952,0.00010739,2]
[336388928,1724801438526,-7019.02837854,0.00010739,2]
[336388931,1724801438536,-1614.74657381,0.00010739,2]
[336388933,1724801438545,-2714.82142664,0.00010739,2]
[336388935,1724801438560,-544.46212792,0.00010739,2]
[336388937,1724801438570,-695.36068026,0.00010739,2]
[336388939,1724801438580,-156.73623269,0.00010858,2]
[336388941,1724801438591,-3611.73406104,0.00010916,2]
[336388943,1724801438600,-160.50654328,0.00010958,2]
[336388944,1724801438611,-169.54206732,0.00010958,2]
[336388946,1724801438622,-500.0,0.00010958,2]
[336388948,1724801438639,-500.0,0.00010958,2]
[336388949,1724801438650,-500.0,0.00010958,2]
[336388950,1724801438660,-500.0,0.00010958,2]
[336388951,1724801438669,-500.0,0.00010958,2]
[336388952,1724801438679,-500.0,0.00010958,2]
[336388953,1724801438690,-463.08579403,0.00010958,2]
[336388954,1724801438700,-500.0,0.00010958,2]
[336388955,1724801438710,-222.40196587,0.00010958,2]
[336388956,1724801438720,-500.0,0.00010958,2]
[336388957,1724801438730,-500.0,0.00010958,2]
[336388958,1724801438740,-500.0,0.00010958,2]
[336388959,1724801438749,-500.0,0.00010958,2]
[336388960,1724801438763,-500.0,0.00010958,2]
[336388961,1724801438773,-501.92765703,0.00010958,2]
[336388962,1724801438782,-500.0,0.00010958,2]
[336388963,1724801438791,-500.0,0.00010958,2]
[336388964,1724801438802,-502.70080558,0.00010958,2]
[336388965,1724801438813,-207.6203096,0.00010958,2]
[336388966,1724801438823,-500.0,0.00010958,2]
[336388967,1724801438833,-500.0,0.00010958,2]
[336388968,1724801438845,-500.0,0.00010958,2]
[336388969,1724801438856,-500.0,0.00010958,2]
[336388970,1724801438867,-500.0,0.00010958,2]
[336388971,1724801438881,-337.54783341,0.00010958,2]
[336388972,1724801438892,-500.0,0.00010958,2]
[336388973,1724801438903,-500.0,0.00010958,2]
[336388974,1724801438913,-500.0,0.00010958,2]
[336388975,1724801438925,-500.0,0.00010958,2]
[336388976,1724801438935,-500.0,0.00010958,2]
[336388977,1724801438945,-500.0,0.00010958,2]
[336388978,1724801438956,-500.0,0.00010958,2]
[336388979,1724801438966,-500.0,0.00010958,2]
[336388980,1724801438976,-462.36139297,0.00010958,2]
[336388981,1724801438986,-500.0,0.00010958,2]
[336388982,1724801438997,-500.0,0.00010958,2]
[336388983,1724801439007,-500.0,0.00010958,2]
[336388984,1724801439019,-500.0,0.00010958,2]
[336388985,1724801439029,-500.0,0.00010958,2]
[336388986,1724801439040,-500.0,0.00010958,2]
[336388987,1724801439050,-185.41766373,0.00010958,2]
[336388988,1724801439060,-500.0,0.00010958,2]
[336388989,1724801439070,-500.0,0.00010958,2]
[336388990,1724801439080,-500.0,0.00010958,2]
[336388991,1724801439089,-500.0,0.00010958,2]
[336388992,1724801439098,-500.0,0.00010958,2]
[336388993,1724801439108,-500.0,0.00010958,2]
[336388994,1724801439117,-500.0,0.00010958,2]
[336388995,1724801439131,-500.0,0.00010958,2]
[336388996,1724801439147,-500.0,0.00010958,2]
[336388997,1724801439156,-500.0,0.00010958,2]
[336388998,1724801439165,-500.0,0.00010958,2]
[336388999,1724801439174,-500.0,0.00010958,2]
[336389000,1724801439183,-500.0,0.00010958,2]
[336389001,1724801439193,-598.25938544,0.00010958,2]
[336389002,1724801439202,-161.57,0.00010958,2]
[336389003,1724801439215,-500.0,0.00010958,2]
[336389004,1724801439225,-500.0,0.00010958,2]
[336389005,1724801439234,-681.99,0.00010958,2]
[336389006,1724801439244,-1186.09,0.00010958,2]
[336389007,1724801439253,-500.0,0.00010958,2]
[336389008,1724801439263,-500.0,0.00010958,2]
[336389009,1724801439272,-500.0,0.00010958,2]
[336389010,1724801439281,-500.0,0.00010958,2]
[336389011,1724801439291,-1309.09,0.00010958,2]
[336389012,1724801439300,-500.0,0.00010958,2]
[336389013,1724801439310,-500.0,0.00010958,2]
[336389014,1724801439320,-500.0,0.00010958,2]
[336389015,1724801439330,-523.09,0.00010958,2]
[336389016,1724801439341,-500.0,0.00010958,2]
[336389017,1724801439350,-500.0,0.00010958,2]
[336389018,1724801439360,-500.0,0.00010958,2]
[336389019,1724801439370,-500.0,0.00010958,2]
[336389020,1724801439386,-500.0,0.00010958,2]
[336389021,1724801439398,-500.0,0.00010958,2]
[336389022,1724801439408,-500.0,0.00010958,2]
[336389023,1724801439418,-500.0,0.00010958,2]
[336389024,1724801439428,-500.0,0.00010958,2]
[336389025,1724801439438,-500.0,0.00010958,2]
[336389026,1724801439447,-500.0,0.00010958,2]
[336389027,1724801439458,-845.49,0.00010958,2]
[336389028,1724801439468,-500.0,0.00010958,2]
[336389029,1724801439479,-500.0,0.00010958,2]
[336389030,1724801439489,-399.42,0.00010958,2]
[336389031,1724801439499,-500.0,0.00010958,2]
[336389032,1724801439510,-500.0,0.00010958,2]
[336389033,1724801439520,-500.0,0.00010958,2]
[336389034,1724801439530,-242.22,0.00010958,2]
[336389035,1724801439540,-500.0,0.00010958,2]
[336389036,1724801439551,-500.0,0.00010958,2]
[336389037,1724801439561,-500.0,0.00010958,2]
[336389038,1724801439571,-500.0,0.00010958,2]
[336389039,1724801439580,-500.0,0.00010958,2]
[336389040,1724801439591,-500.0,0.00010958,2]
[336389041,1724801439601,-441.16,0.00010958,2]
[336389042,1724801439611,-500.0,0.00010958,2]
[336389043,1724801439621,-500.0,0.00010958,2]
[336389044,1724801439633,-500.0,0.00010958,2]
[336389045,1724801439643,-500.0,0.00010958,2]
[336389046,1724801439653,-500.0,0.00010958,2]
[336389047,1724801439663,-500.0,0.00010958,2]
[336389048,1724801439673,-500.0,0.00010958,2]
[336389049,1724801439683,-837.23,0.00010958,2]
[336389050,1724801439693,-604.34,0.00010958,2]
[336389051,1724801439702,-500.0,0.00010958,2]
[336389052,1724801439712,-541.93,0.00010958,2]
[336389053,1724801439723,-500.0,0.00010958,2]
[336389054,1724801439733,-500.0,0.00010958,2]
[336389055,1724801439744,-500.0,0.00010958,2]
[336389057,1724801439754,-500.0,0.00010958,2]
[336389059,1724801439767,-515.02,0.00010958,2]
[336389060,1724801439778,-500.0,0.00010958,2]
[336389061,1724801439788,-500.0,0.00010958,2]